[Event "European Rapid Championship 2021"]
[Site "Katowice"]
[Date "2021.12.18"]
[Round "2.27"]
[White "Wiewiora, Eneasz"]
[Black "Kiolbasa, Damian"]
[Result "0-1"]
[ECO "C00"]
[WhiteElo "2333"]
[BlackElo "1893"]
[Annotator "ChessBase"]
[PlyCount "94"]
[EventDate "2021.12.18"]
[EventType "swiss"]
[EventCountry "POL"]
[SourceTitle "playchess.com"]
[Source "ChessBase"]
[SourceQuality "1"]
[TimeControl "900+10"]

1. e4 {[%emt 0:00:02]} e6 {[%emt 0:00:02]} 2. d4 {[%emt 0:00:02]} d5 {[%emt 0:
00:02]} 3. Bd3 {[%emt 0:00:01]} dxe4 {[%emt 0:00:48]} 4. Bxe4 {[%emt 0:00:02]}
Nf6 {[%emt 0:00:02]} 5. Bf3 {[%emt 0:00:01]} c5 {[%emt 0:00:03]} 6. Ne2 {
[%emt 0:00:01]} Be7 {[%emt 0:00:36]} 7. O-O {[%emt 0:00:27]} O-O {[%emt 0:00:
03]} 8. c4 {[%emt 0:01:07]} cxd4 {[%emt 0:00:36]} 9. Qxd4 {[%emt 0:03:19]} Nc6
{[%emt 0:00:51]} 10. Bxc6 {[%emt 0:00:22]} bxc6 {[%emt 0:00:02]} 11. Nbc3 {
[%emt 0:00:15]} Qxd4 {[%emt 0:01:55]} 12. Nxd4 {[%emt 0:00:02]} c5 {[%emt 0:00:
01]} 13. Nc6 {[%emt 0:02:18]} Re8 {[%emt 0:00:50]} 14. Nxe7+ {[%emt 0:00:15]}
Rxe7 {[%emt 0:00:01]} 15. Be3 {[%emt 0:00:01]} Ba6 {[%emt 0:01:34]} 16. b3 {
[%emt 0:00:05]} Rc7 {[%emt 0:00:02]} 17. Na4 {[%emt 0:00:35]} Rac8 {[%emt 0:00:
57]} 18. Rfd1 {[%emt 0:00:06]} Bb7 {[%emt 0:03:41]} 19. Nxc5 {[%emt 0:00:13]}
Ng4 {[%emt 0:00:54]} 20. Nxb7 {[%emt 0:00:15]} Nxe3 {[%emt 0:00:06]} 21. fxe3 {
[%emt 0:00:10]} Rxb7 {[%emt 0:00:02]} 22. Rd6 {[%emt 0:00:07]} Kf8 {[%emt 0:00:
03]} 23. Rad1 {[%emt 0:00:03]} Ke7 {[%emt 0:00:01]} 24. Ra6 {[%emt 0:01:17]}
Rc5 {[%emt 0:00:18]} 25. Rd4 {[%emt 0:01:35]} Kf6 {[%emt 0:00:49]} 26. Kf2 {
[%emt 0:00:11]} g5 {[%emt 0:00:16]} 27. g4 {[%emt 0:00:15]} Kg6 {[%emt 0:00:30]
} 28. Rd8 {[%emt 0:01:22]} h5 {[%emt 0:00:02]} 29. h3 {[%emt 0:00:01]} hxg4 {
[%emt 0:00:10]} 30. hxg4 {[%emt 0:00:01]} Re5 {[%emt 0:01:36]} 31. Rg8+ {
[%emt 0:02:36]} Kh6 {[%emt 0:00:02]} 32. Rh8+ {[%emt 0:00:04]} Kg6 {[%emt 0:00:
04]} 33. Rg8+ {[%emt 0:00:21]} Kh6 {[%emt 0:00:02]} 34. Kf3 {[%emt 0:00:04]}
Rd7 {[%emt 0:00:09]} 35. Ke2 {[%emt 0:00:34]} Re4 {[%emt 0:00:05]} 36. Ra8 {
[%emt 0:00:37]} Rxg4 {[%emt 0:00:33]} 37. R6xa7 {[%emt 0:00:14]} Rg2+ {[%emt 0:
00:59]} 38. Kf3 {[%emt 0:00:01]} Rdd2 {[%emt 0:00:01]} 39. Ke4 {[%emt 0:00:48]}
Rgf2 {[%emt 0:02:26]} 40. Rg8 {[%emt 0:00:30]} Kh5 {[%emt 0:00:10]} 41. c5 {
[%emt 0:00:36]} Rc2 42. Ra5 {[%emt 0:00:41]} Kg4 {[%emt 0:00:17]} 43. b4 f6 {
[%emt 0:00:20]} 44. c6 {[%emt 0:00:22]} Rxc6 {[%emt 0:00:05]} 45. b5 {[%emt 0:
00:19]} Rcc2 {[%emt 0:00:14]} 46. a4 {[%emt 0:00:08]} Rfd2 {[%emt 0:00:04]} 47.
Ra6 {[%emt 0:00:23]} Rc4# {[%emt 0:00:03]} 0-1

[Event "European Rapid Championship 2021"]
[Site "Katowice"]
[Date "2021.12.18"]
[Round "2.27"]
[White "Jozwik, Jacek"]
[Black "Kulon, Klaudia"]
[Result "0-1"]
[ECO "E70"]
[WhiteElo "1817"]
[BlackElo "2328"]
[Annotator "ChessBase"]
[PlyCount "90"]
[EventDate "2021.12.18"]
[EventType "swiss"]
[EventCountry "POL"]
[SourceTitle "playchess.com"]
[Source "ChessBase"]
[SourceQuality "1"]
[TimeControl "900+10"]

1. d4 {[%emt 0:00:02]} Nf6 {[%emt 0:00:05]} 2. c4 {[%emt 0:00:02]} g6 {[%emt 0:
00:03]} 3. Nc3 {[%emt 0:00:01]} Bg7 {[%emt 0:00:01]} 4. e4 {[%emt 0:00:03]} O-O
{[%emt 0:00:03]} 5. e5 {[%emt 0:00:14]} Ne8 {[%emt 0:00:04]} 6. Nf3 {[%emt 0:
01:37]} d6 {[%emt 0:00:03]} 7. Be2 {[%emt 0:00:11]} c5 {[%emt 0:00:08]} 8. exd6
{[%emt 0:00:32]} cxd4 {[%emt 0:01:58]} 9. dxe7 {[%emt 0:00:23]} Qxe7 {[%emt 0:
00:02]} 10. Nxd4 {[%emt 0:00:05]} Bg4 {[%emt 0:00:14]} 11. O-O {[%emt 0:01:08]}
Bxe2 {[%emt 0:00:05]} 12. Ndxe2 {[%emt 0:01:23]} Nd6 {[%emt 0:00:21]} 13. b3 {
[%emt 0:00:39]} Nc6 {[%emt 0:00:38]} 14. Bb2 {[%emt 0:01:57]} Rfe8 {[%emt 0:00:
16]} 15. Re1 {[%emt 0:00:24]} Qf8 {[%emt 0:01:23]} 16. Nf4 {[%emt 0:02:57]}
Rxe1+ {[%emt 0:00:43]} 17. Qxe1 {[%emt 0:00:03]} b5 {[%emt 0:00:11]} 18. c5 {
[%emt 0:02:19]} Nf5 {[%emt 0:00:16]} 19. Rc1 {[%emt 0:01:23]} Re8 {[%emt 0:03:
34]} 20. Qd2 {[%emt 0:00:06]} Nfd4 {[%emt 0:00:12]} 21. Ncd5 {[%emt 0:00:57]}
g5 {[%emt 0:01:07]} 22. Nh5 {[%emt 0:01:12]} Re6 {[%emt 0:03:04]} 23. Bxd4 {
[%emt 0:00:22]} Nxd4 {[%emt 0:00:01]} 24. Re1 {[%emt 0:00:18]} Qxc5 {[%emt 0:
00:32]} 25. Rxe6 {[%emt 0:00:14]} Nxe6 {[%emt 0:00:29]} 26. Nhf6+ {[%emt 0:00:
16]} Kh8 {[%emt 0:01:08]} 27. Ne4 {[%emt 0:00:07]} Qd4 {[%emt 0:00:10]} 28.
Qxd4 {[%emt 0:00:13]} Bxd4 {[%emt 0:00:01]} 29. Nd6 {[%emt 0:00:14]} a6 {
[%emt 0:00:29]} 30. Nb4 {[%emt 0:00:17]} Bc5 {[%emt 0:00:11]} 31. Nxf7+ {
[%emt 0:00:29]} Kg7 {[%emt 0:00:02]} 32. Nxg5 {[%emt 0:00:11]} Nxg5 {[%emt 0:
00:01]} 33. Nxa6 {[%emt 0:00:00]} Bb6 {[%emt 0:00:01]} 34. a4 {[%emt 0:00:08]}
bxa4 {[%emt 0:00:05]} 35. bxa4 {[%emt 0:00:00]} Ne4 {[%emt 0:00:01]} 36. Nb4 {
[%emt 0:00:10]} Nxf2 {[%emt 0:00:26]} 37. Kf1 {[%emt 0:00:08]} Ng4 {[%emt 0:00:
02]} 38. h3 {[%emt 0:00:03]} Ne3+ {[%emt 0:00:02]} 39. Ke2 {[%emt 0:00:05]}
Nxg2 {[%emt 0:00:02]} 40. Kf3 {[%emt 0:00:02]} Nh4+ {[%emt 0:00:09]} 41. Ke4 {
[%emt 0:00:04]} Kg6 {[%emt 0:00:07]} 42. Nc6 {[%emt 0:00:05]} Nf5 {[%emt 0:00:
26]} 43. a5 {[%emt 0:00:01]} Bg1 {[%emt 0:00:05]} 44. Kd5 {[%emt 0:00:50]} Ne3+
{[%emt 0:00:21]} 45. Ke6 {[%emt 0:00:27]} Kg5 {[%emt 0:00:34]} 0-1

[Event "European Rapid Championship 2021"]
[Site "Katowice"]
[Date "2021.12.18"]
[Round "2.28"]
[White "Wieczorek, Oskar"]
[Black "Parol, Pola"]
[Result "1-0"]
[ECO "B90"]
[WhiteElo "2367"]
[BlackElo "1892"]
[Annotator "ChessBase"]
[PlyCount "83"]
[EventDate "2021.12.18"]
[EventType "swiss"]
[EventCountry "POL"]
[SourceTitle "playchess.com"]
[Source "ChessBase"]
[SourceQuality "1"]
[TimeControl "900+10"]

1. e4 {[%emt 0:00:02]} c5 {[%emt 0:00:01]} 2. Nf3 {[%emt 0:00:02]} d6 {[%emt 0:
00:01]} 3. d4 {[%emt 0:00:01]} cxd4 {[%emt 0:00:02]} 4. Nxd4 {[%emt 0:00:02]}
Nf6 {[%emt 0:00:02]} 5. Nc3 {[%emt 0:00:01]} a6 {[%emt 0:00:01]} 6. h4 {
[%emt 0:00:01]} e5 {[%emt 0:00:08]} 7. Nb3 {[%emt 0:00:02]} Be7 {[%emt 0:00:12]
} 8. Bg5 {[%emt 0:00:02]} Nbd7 {[%emt 0:00:10]} 9. a4 {[%emt 0:00:05]} O-O {
[%emt 0:00:23]} 10. Bc4 {[%emt 0:00:28]} Qc7 {[%emt 0:01:12]} 11. Nd2 {[%emt 0:
02:33]} b6 {[%emt 0:00:34]} 12. Qe2 {[%emt 0:00:33]} Bb7 {[%emt 0:01:19]} 13.
O-O {[%emt 0:00:44]} h6 {[%emt 0:00:14]} 14. Be3 {[%emt 0:02:04]} Nc5 {[%emt 0:
02:50]} 15. Bxc5 {[%emt 0:00:10]} dxc5 {[%emt 0:00:34]} 16. Rad1 {[%emt 0:01:
55]} Rfd8 {[%emt 0:00:14]} 17. Nf3 {[%emt 0:00:20]} Rxd1 {[%emt 0:01:14]} 18.
Rxd1 {[%emt 0:00:02]} Bf8 {[%emt 0:01:00]} 19. g3 {[%emt 0:01:35]} Bc8 {
[%emt 0:02:54]} 20. Nd5 {[%emt 0:00:51]} Nxd5 {[%emt 0:00:53]} 21. Bxd5 {
[%emt 0:00:01]} Rb8 {[%emt 0:00:18]} 22. Nh2 {[%emt 0:00:19]} b5 {[%emt 0:00:
12]} 23. axb5 {[%emt 0:00:03]} axb5 {[%emt 0:00:01]} 24. b3 {[%emt 0:01:41]}
Be7 {[%emt 0:01:00]} 25. Qh5 {[%emt 0:01:56]} Bf6 {[%emt 0:00:19]} 26. Ng4 {
[%emt 0:00:13]} Bxg4 {[%emt 0:00:07]} 27. Qxg4 {[%emt 0:00:02]} c4 {[%emt 0:01:
22]} 28. Ra1 {[%emt 0:00:07]} cxb3 {[%emt 0:00:08]} 29. cxb3 {[%emt 0:00:06]}
Be7 {[%emt 0:00:24]} 30. Qf5 {[%emt 0:01:48]} Bc5 {[%emt 0:00:34]} 31. Ra6 {
[%emt 0:00:19]} Bd4 {[%emt 0:00:17]} 32. Kg2 {[%emt 0:00:13]} b4 {[%emt 0:00:
29]} 33. g4 {[%emt 0:00:27]} Kh8 {[%emt 0:01:00]} 34. Bxf7 {[%emt 0:00:19]} Rb6
{[%emt 0:00:24]} 35. Ra8+ {[%emt 0:00:18]} Rb8 {[%emt 0:00:01]} 36. Ra6 {
[%emt 0:00:35]} Rb6 {[%emt 0:00:01]} 37. Rxb6 {[%emt 0:00:22]} Bxb6 {[%emt 0:
00:14]} 38. g5 {[%emt 0:00:02]} Qd6 {[%emt 0:00:21]} 39. Bd5 {[%emt 0:00:17]}
hxg5 {[%emt 0:00:13]} 40. Qf7 {[%emt 0:00:26]} Kh7 {[%emt 0:00:11]} 41. hxg5 {
[%emt 0:00:15]} Bd8 {[%emt 0:00:07]} 42. Qh5+ {[%emt 0:00:02]} 1-0

[Event "European Rapid Championship 2021"]
[Site "Katowice"]
[Date "2021.12.18"]
[Round "2.28"]
[White "Janaszak, Dawid"]
[Black "Kaminski, Jan"]
[Result "1-0"]
[ECO "B23"]
[WhiteElo "2328"]
[BlackElo "1812"]
[Annotator "ChessBase"]
[PlyCount "67"]
[EventDate "2021.12.18"]
[EventType "swiss"]
[EventCountry "POL"]
[SourceTitle "playchess.com"]
[Source "ChessBase"]
[SourceQuality "1"]
[TimeControl "900+10"]

1. e4 {[%emt 0:00:01]} c5 {[%emt 0:00:01]} 2. Nc3 {[%emt 0:00:02]} a6 {[%emt 0:
00:01]} 3. d4 {[%emt 0:00:07]} cxd4 {[%emt 0:00:05]} 4. Qxd4 {[%emt 0:00:02]}
Nc6 {[%emt 0:00:10]} 5. Qd2 {[%emt 0:00:01]} g6 {[%emt 0:00:43]} 6. b3 {
[%emt 0:00:02]} Bh6 {[%emt 0:00:32]} 7. f4 {[%emt 0:00:04]} d6 {[%emt 0:01:23]}
8. Bb2 {[%emt 0:00:06]} Bg7 {[%emt 0:00:09]} 9. O-O-O {[%emt 0:00:05]} Bg4 {
[%emt 0:00:10]} 10. Nf3 {[%emt 0:00:10]} Rc8 {[%emt 0:00:33]} 11. Kb1 {[%emt 0:
00:04]} b5 {[%emt 0:00:57]} 12. f5 {[%emt 0:01:16]} Bxf3 {[%emt 0:00:19]} 13.
gxf3 {[%emt 0:00:03]} Nd4 {[%emt 0:04:55]} 14. f6 {[%emt 0:07:37]} Bxf6 {
[%emt 0:00:39]} 15. Nd5 {[%emt 0:00:01]} Nxf3 {[%emt 0:01:34]} 16. Nxf6+ {
[%emt 0:00:04]} Nxf6 {[%emt 0:00:10]} 17. Qf4 {[%emt 0:01:20]} Ne5 {[%emt 0:01:
50]} 18. Bh3 {[%emt 0:00:46]} Rc5 {[%emt 0:00:59]} 19. b4 {[%emt 0:01:27]} Rc4
{[%emt 0:00:01]} 20. Bxe5 {[%emt 0:00:05]} Rxb4+ {[%emt 0:01:27]} 21. Bb2 {
[%emt 0:00:15]} O-O {[%emt 0:00:40]} 22. Rhe1 {[%emt 0:00:16]} Nd7 {[%emt 0:00:
19]} 23. Qd2 {[%emt 0:01:04]} a5 {[%emt 0:00:32]} 24. e5 {[%emt 0:00:07]} Nc5 {
[%emt 0:00:12]} 25. a3 {[%emt 0:00:36]} Rh4 {[%emt 0:00:18]} 26. Re3 {[%emt 0:
00:08]} Na4 {[%emt 0:00:13]} 27. exd6 {[%emt 0:00:06]} exd6 {[%emt 0:00:04]}
28. Qxd6 {[%emt 0:00:51]} Qg5 {[%emt 0:00:01]} 29. Re5 {[%emt 0:02:14]} Qf4 {
[%emt 0:00:18]} 30. Rf1 {[%emt 0:00:34]} Qc4 {[%emt 0:00:22]} 31. Bg2 {[%emt 0:
00:22]} Nxb2 {[%emt 0:00:04]} 32. Kxb2 {[%emt 0:00:02]} Rxh2 {[%emt 0:00:08]}
33. Rc5 {[%emt 0:00:03]} Qe2 {[%emt 0:00:11]} 34. Qxh2 {[%emt 0:00:04]} 1-0

[Event "European Rapid Championship 2021"]
[Site "Katowice"]
[Date "2021.12.18"]
[Round "2.29"]
[White "Reimanis, Ritvars"]
[Black "Budzisz, Adrian"]
[Result "1-0"]
[ECO "E91"]
[WhiteElo "2397"]
[BlackElo "1985"]
[Annotator "ChessBase"]
[PlyCount "85"]
[EventDate "2021.12.18"]
[EventType "swiss"]
[EventCountry "POL"]
[SourceTitle "playchess.com"]
[Source "ChessBase"]
[SourceQuality "1"]
[TimeControl "900+10"]

1. Nf3 {[%emt 0:00:03]} Nf6 {[%emt 0:00:02]} 2. d4 {[%emt 0:00:02]} g6 {
[%emt 0:00:02]} 3. c4 {[%emt 0:00:01]} Bg7 {[%emt 0:00:01]} 4. Nc3 {[%emt 0:00:
01]} O-O {[%emt 0:00:02]} 5. e4 {[%emt 0:00:01]} d6 {[%emt 0:00:01]} 6. Be2 {
[%emt 0:00:01]} c5 {[%emt 0:00:01]} 7. d5 {[%emt 0:00:08]} e5 {[%emt 0:00:05]}
8. O-O {[%emt 0:00:14]} h6 {[%emt 0:00:22]} 9. Ne1 {[%emt 0:00:12]} Ne8 {
[%emt 0:00:01]} 10. a3 {[%emt 0:00:34]} f5 {[%emt 0:00:02]} 11. b4 {[%emt 0:00:
29]} b6 {[%emt 0:00:07]} 12. Rb1 {[%emt 0:00:15]} Nf6 {[%emt 0:00:16]} 13. bxc5
{[%emt 0:00:13]} bxc5 {[%emt 0:00:06]} 14. exf5 {[%emt 0:01:08]} gxf5 {[%emt 0:
00:04]} 15. f4 {[%emt 0:00:20]} e4 {[%emt 0:00:38]} 16. Bb2 {[%emt 0:00:55]}
Nbd7 {[%emt 0:02:09]} 17. Ba1 {[%emt 0:00:30]} Nb6 {[%emt 0:00:28]} 18. Nc2 {
[%emt 0:00:23]} Bd7 {[%emt 0:01:25]} 19. Ne3 {[%emt 0:00:12]} Qe8 {[%emt 0:01:
37]} 20. Nb5 {[%emt 0:00:24]} Bxb5 {[%emt 0:01:37]} 21. Rxb5 {[%emt 0:00:02]}
Qd7 {[%emt 0:00:07]} 22. Qd2 {[%emt 0:00:50]} Ne8 {[%emt 0:00:20]} 23. Kh1 {
[%emt 0:03:45]} Nc7 {[%emt 0:01:20]} 24. Rbb1 {[%emt 0:03:09]} Bxa1 {[%emt 0:
00:47]} 25. Rxa1 Rab8 26. g4 {[%emt 0:00:17]} fxg4 {[%emt 0:00:04]} 27. Bxg4 {
[%emt 0:00:15]} Qg7 {[%emt 0:00:03]} 28. Nf5 {[%emt 0:02:00]} Rxf5 {[%emt 0:01:
55]} 29. Bxf5 {[%emt 0:00:03]} Nxc4 {[%emt 0:00:01]} 30. Qc1 {[%emt 0:01:17]}
Qd4 {[%emt 0:01:22]} 31. Rd1 {[%emt 0:00:04]} Qf2 {[%emt 0:00:16]} 32. Rg1+ {
[%emt 0:00:15]} Kf8 {[%emt 0:00:21]} 33. Rg2 {[%emt 0:00:45]} Qd4 {[%emt 0:00:
45]} 34. Qg1 {[%emt 0:00:09]} Qxd5 {[%emt 0:01:00]} 35. Rd1 {[%emt 0:00:01]}
Qf7 {[%emt 0:00:25]} 36. Bxe4 {[%emt 0:00:12]} Rb2 {[%emt 0:00:29]} 37. Rxb2
Nxb2 {[%emt 0:00:01]} 38. Rb1 {[%emt 0:00:23]} Qc4 {[%emt 0:00:33]} 39. Qg6 {
[%emt 0:00:26]} Qd4 {[%emt 0:00:15]} 40. Re1 {[%emt 0:00:29]} Nd1 {[%emt 0:01:
14]} 41. Qxh6+ {[%emt 0:00:05]} Ke7 {[%emt 0:00:01]} 42. Bc6+ {[%emt 0:00:08]}
Kd8 {[%emt 0:00:01]} 43. Qf8+ {[%emt 0:00:25]} 1-0

[Event "European Rapid Championship 2021"]
[Site "Katowice"]
[Date "2021.12.18"]
[Round "2.29"]
[White "Golubovskis, Maksims"]
[Black "Hasinski, Krystian"]
[Result "1-0"]
[ECO "B19"]
[WhiteElo "2210"]
[BlackElo "1811"]
[Annotator "ChessBase"]
[PlyCount "93"]
[EventDate "2021.12.18"]
[EventType "swiss"]
[EventCountry "POL"]
[SourceTitle "playchess.com"]
[Source "ChessBase"]
[SourceQuality "1"]
[TimeControl "900+10"]

1. e4 {[%emt 0:00:02]} c6 {[%emt 0:00:06]} 2. d4 {[%emt 0:00:18]} d5 {[%emt 0:
00:01]} 3. Nc3 {[%emt 0:00:15]} dxe4 {[%emt 0:00:03]} 4. Nxe4 {[%emt 0:00:02]}
Bf5 {[%emt 0:00:01]} 5. Ng3 {[%emt 0:00:01]} Bg6 {[%emt 0:00:01]} 6. h4 {
[%emt 0:00:03]} h6 {[%emt 0:00:01]} 7. Nf3 {[%emt 0:00:01]} Nd7 {[%emt 0:00:04]
} 8. h5 {[%emt 0:00:04]} Bh7 {[%emt 0:00:01]} 9. Bd3 {[%emt 0:00:01]} Bxd3 {
[%emt 0:00:02]} 10. Qxd3 {[%emt 0:00:02]} Ngf6 {[%emt 0:00:10]} 11. Bd2 {
[%emt 0:00:03]} e6 {[%emt 0:00:03]} 12. O-O-O {[%emt 0:00:11]} Qc7 {[%emt 0:00:
03]} 13. c4 {[%emt 0:00:21]} Bd6 {[%emt 0:01:42]} 14. Ne4 {[%emt 0:00:03]} Bf4
{[%emt 0:00:45]} 15. Nc3 {[%emt 0:00:46]} Bxd2+ {[%emt 0:00:14]} 16. Qxd2 {
[%emt 0:00:06]} b5 {[%emt 0:02:30]} 17. cxb5 {[%emt 0:00:17]} cxb5 {[%emt 0:00:
02]} 18. Kb1 {[%emt 0:00:01]} a6 {[%emt 0:00:33]} 19. d5 {[%emt 0:02:03]} O-O {
[%emt 0:03:14]} 20. dxe6 {[%emt 0:01:43]} fxe6 {[%emt 0:00:03]} 21. Qe2 {
[%emt 0:03:48]} Rfe8 {[%emt 0:00:26]} 22. Ne4 {[%emt 0:02:00]} Nd5 {[%emt 0:01:
16]} 23. g4 {[%emt 0:00:10]} Qc4 {[%emt 0:02:01]} 24. Qxc4 {[%emt 0:01:57]}
bxc4 {[%emt 0:00:01]} 25. g5 {[%emt 0:01:18]} Kh7 {[%emt 0:02:34]} 26. Nd4 {
[%emt 0:01:18]} N7b6 {[%emt 0:00:45]} 27. Rhg1 {[%emt 0:00:52]} e5 {[%emt 0:00:
33]} 28. Nf5 {[%emt 0:00:48]} Rf8 {[%emt 0:00:30]} 29. Nfd6 {[%emt 0:00:01]}
Rf4 {[%emt 0:00:19]} 30. gxh6 {[%emt 0:00:09]} gxh6 {[%emt 0:00:21]} 31. Rg6 {
[%emt 0:00:24]} Rg8 {[%emt 0:00:08]} 32. Rdg1 {[%emt 0:00:22]} Rxg6 {[%emt 0:
00:43]} 33. hxg6+ {[%emt 0:00:46]} Kg8 {[%emt 0:00:16]} 34. g7 {[%emt 0:00:21]}
Nf6 {[%emt 0:00:19]} 35. Nxf6+ {[%emt 0:00:04]} Rxf6 {[%emt 0:00:02]} 36. Ne4 {
[%emt 0:00:11]} Rf7 {[%emt 0:00:11]} 37. Rg6 {[%emt 0:00:03]} Rxg7 {[%emt 0:00:
06]} 38. Rxb6 {[%emt 0:00:02]} Rg1+ {[%emt 0:00:17]} 39. Kc2 {[%emt 0:00:00]}
Kg7 {[%emt 0:00:02]} 40. Rxa6 {[%emt 0:00:05]} h5 {[%emt 0:00:03]} 41. Ng3 {
[%emt 0:00:04]} h4 {[%emt 0:01:01]} 42. Nf5+ {[%emt 0:00:00]} Kh7 {[%emt 0:00:
09]} 43. Rh6+ {[%emt 0:00:26]} Kg8 {[%emt 0:00:02]} 44. Rxh4 {[%emt 0:00:05]}
Rg2 {[%emt 0:00:06]} 45. Rg4+ {[%emt 0:00:05]} Rxg4 {[%emt 0:00:13]} 46. Nh6+ {
[%emt 0:00:01]} Kg7 {[%emt 0:00:02]} 47. Nxg4 {[%emt 0:00:02]} 1-0

[Event "European Rapid Championship 2021"]
[Site "Katowice"]
[Date "2021.12.18"]
[Round "2.30"]
[White "Paszewski, Mateusz"]
[Black "Meller, Piotr"]
[Result "1-0"]
[ECO "A30"]
[WhiteElo "2202"]
[BlackElo "1805"]
[Annotator "NA"]
[PlyCount "43"]
[EventDate "2021.12.18"]
[EventType "swiss"]
[EventCountry "POL"]
[SourceTitle "playchess.com"]
[Source "ChessBase"]
[SourceQuality "1"]
[TimeControl "900+10"]

1. c4 {[%emt 0:00:05]} c5 {[%emt 0:00:19]} 2. Nf3 {[%emt 0:00:22]} Nf6 {
[%emt 0:00:13]} 3. Nc3 {[%emt 0:00:03]} e6 {[%emt 0:01:17]} 4. g3 {[%emt 0:00:
04]} b6 {[%emt 0:00:05]} 5. Bg2 {[%emt 0:00:03]} Bb7 {[%emt 0:00:02]} 6. O-O {
[%emt 0:00:05]} Be7 {[%emt 0:00:06]} 7. Re1 {[%emt 0:00:01]} d6 {[%emt 0:01:25]
} 8. e4 {[%emt 0:00:05]} a6 {[%emt 0:00:13]} 9. d4 {[%emt 0:00:01]} cxd4 {
[%emt 0:00:02]} 10. Nxd4 {[%emt 0:00:01]} Qc7 {[%emt 0:00:01]} 11. Be3 {
[%emt 0:00:44]} Nbd7 {[%emt 0:00:01]} 12. Rc1 {[%emt 0:00:02]} Rc8 {[%emt 0:01:
56]} 13. f4 {[%emt 0:01:33]} O-O {[%emt 0:01:04]} 14. g4 {[%emt 0:05:43]} Nc5 {
[%emt 0:03:59]} 15. Bf2 {[%emt 0:00:03]} e5 {[%emt 0:00:54]} 16. Nf5 {[%emt 0:
00:39]} exf4 {[%emt 0:00:24]} 17. b4 {[%emt 0:00:13]} Ne6 {[%emt 0:00:11]} 18.
Nd5 {[%emt 0:00:06]} Nxd5 {[%emt 0:03:04]} 19. exd5 {[%emt 0:00:21]} Bg5 {
[%emt 0:00:19]} 20. dxe6 {[%emt 0:01:03]} fxe6 {[%emt 0:00:10]} 21. Bxb7 {
[%emt 0:00:15]} Qxb7 {[%emt 0:00:05]} 22. Nxd6 {[%emt 0:00:06]} 1-0

[Event "European Rapid Championship 2021"]
[Site "Katowice"]
[Date "2021.12.18"]
[Round "2.30"]
[White "Lukasiewicz, Aleksander"]
[Black "Nasuta, Grzegorz"]
[Result "0-1"]
[ECO "B86"]
[WhiteElo "1887"]
[BlackElo "2345"]
[Annotator "ChessBase"]
[PlyCount "72"]
[EventDate "2021.12.18"]
[EventType "swiss"]
[EventCountry "POL"]
[SourceTitle "playchess.com"]
[Source "ChessBase"]
[SourceQuality "1"]
[TimeControl "900+10"]

1. e4 {[%emt 0:00:02]} c5 {[%emt 0:00:01]} 2. Nf3 {[%emt 0:00:01]} e6 {[%emt 0:
00:03]} 3. d4 {[%emt 0:00:05]} cxd4 {[%emt 0:00:02]} 4. Nxd4 {[%emt 0:00:02]}
Nf6 {[%emt 0:00:02]} 5. Nc3 {[%emt 0:00:01]} d6 {[%emt 0:00:03]} 6. Bc4 {
[%emt 0:00:03]} Be7 {[%emt 0:00:04]} 7. Be3 {[%emt 0:00:15]} O-O {[%emt 0:00:
03]} 8. Bb3 {[%emt 0:00:01]} Na6 {[%emt 0:00:02]} 9. O-O {[%emt 0:01:47]} Nc5 {
[%emt 0:00:01]} 10. f4 {[%emt 0:00:01]} Nfxe4 {[%emt 0:02:41]} 11. Nxe4 {
[%emt 0:00:02]} Nxe4 {[%emt 0:00:01]} 12. f5 {[%emt 0:00:02]} d5 {[%emt 0:00:
05]} 13. Qh5 {[%emt 0:01:39]} Bg5 {[%emt 0:06:10]} 14. Rae1 {[%emt 0:06:10]} g6
{[%emt 0:00:08]} 15. fxg6 {[%emt 0:02:16]} hxg6 {[%emt 0:01:25]} 16. Qe2 {
[%emt 0:00:03]} Bd7 {[%emt 0:03:00]} 17. c3 {[%emt 0:00:09]} Qe7 {[%emt 0:01:
41]} 18. Bc2 {[%emt 0:00:30]} f5 {[%emt 0:00:20]} 19. Bxg5 {[%emt 0:02:00]}
Qxg5 {[%emt 0:00:01]} 20. Nf3 {[%emt 0:00:02]} Qf6 {[%emt 0:00:13]} 21. Nd4 {
[%emt 0:01:02]} e5 {[%emt 0:00:28]} 22. Bxe4 {[%emt 0:00:02]} dxe4 {[%emt 0:00:
06]} 23. Qc4+ {[%emt 0:00:04]} Qf7 {[%emt 0:00:11]} 24. Qxf7+ {[%emt 0:00:40]}
Rxf7 {[%emt 0:00:01]} 25. Nb3 {[%emt 0:00:17]} Bb5 {[%emt 0:00:02]} 26. Rf2 {
[%emt 0:00:01]} Rd8 {[%emt 0:00:05]} 27. Rc2 {[%emt 0:00:22]} Rfd7 {[%emt 0:00:
16]} 28. Kf2 {[%emt 0:00:17]} Bd3 {[%emt 0:00:47]} 29. Rd2 {[%emt 0:00:28]} f4
{[%emt 0:00:02]} 30. Kg1 {[%emt 0:00:11]} e3 {[%emt 0:00:01]} 31. Rdd1 {
[%emt 0:00:01]} Bc4 {[%emt 0:00:14]} 32. Rxd7 {[%emt 0:00:46]} Rxd7 {[%emt 0:
00:02]} 33. Nc5 {[%emt 0:00:01]} Rd2 {[%emt 0:00:07]} 34. Nxb7 {[%emt 0:00:02]}
Bd5 {[%emt 0:00:05]} 35. Nc5 {[%emt 0:00:10]} Rxg2+ {[%emt 0:00:01]} 36. Kf1 {
[%emt 0:00:01]} Rxh2 {[%emt 0:00:13]} 0-1